[Event "IV Elllobregat Open Chess Tmnt"]
[Site "Sant Boi de Llobregat, Spain"]
[Date "2023.11.30"]
[Round "1.36"]
[White "Madaminov, Mukhiddin"]
[Black "Le Goff, Ronan"]
[Result "1-0"]
[TimeControl "90min/40moves + 15min/end + 30sec from move 1"]
[WhiteFideId "14210703"]
[BlackFideId "612073"]
[WhiteElo "2494"]
[BlackElo "2278"]

1. e4 {[%clk 01:29:45]} {[%emt 00:01:12]} e5 {[%clk 01:30:54]} {[%emt
00:00:07]} 2. Nf3 {[%clk 01:29:23]} {[%emt 00:00:50]} Nc6 {[%clk 01:31:17]}
{[%emt 00:00:09]} 3. Bb5 {[%clk 01:29:07]} {[%emt 00:00:45]} a6 {[%clk
01:31:37]} {[%emt 00:00:11]} 4. Ba4 {[%clk 01:28:33]} {[%emt 00:01:02]} d6
{[%clk 01:32:01]} {[%emt 00:00:08]} 5. O-O {[%clk 01:27:32]} {[%emt 00:01:28]}
Bd7 {[%clk 01:32:12]} {[%emt 00:00:22]} 6. c3 {[%clk 01:27:03]} {[%emt
00:00:58]} g6 {[%clk 01:32:12]} {[%emt 00:00:32]} 7. d4 {[%clk 01:26:02]}
{[%emt 00:01:28]} Bg7 {[%clk 01:32:28]} {[%emt 00:00:16]} 8. h3 {[%clk
01:25:18]} {[%emt 00:01:13]} Nf6 {[%clk 01:32:38]} {[%emt 00:00:22]} 9. Re1
{[%clk 01:24:25]} {[%emt 00:01:21]} O-O {[%clk 01:32:39]} {[%emt 00:00:31]} 10.
Bc2 {[%clk 01:24:44]} {[%emt 00:00:09]} Re8 {[%clk 01:32:23]} {[%emt 00:00:48]}
11. Nbd2 {[%clk 01:22:18]} {[%emt 00:02:54]} Qe7 {[%clk 01:30:31]} {[%emt
00:02:24]} 12. Nf1 {[%clk 01:16:57]} {[%emt 00:05:49]} Qf8 {[%clk 01:28:58]}
{[%emt 00:02:05]} 13. Ng3 {[%clk 01:13:15]} {[%emt 00:04:07]} Rad8 {[%clk
01:25:04]} {[%emt 00:04:28]} 14. Bg5 {[%clk 01:08:26]} {[%emt 00:05:17]} h6
{[%clk 01:23:56]} {[%emt 00:01:42]} 15. Be3 {[%clk 01:03:24]} {[%emt 00:05:30]}
d5 {[%clk 01:07:55]} {[%emt 00:16:32]} 16. Nxe5 {[%clk 00:53:25]} {[%emt
00:10:25]} Nxe5 {[%clk 00:58:56]} {[%emt 00:09:32]} 17. dxe5 {[%clk 00:53:15]}
{[%emt 00:00:37]} Nxe4 {[%clk 00:59:16]} {[%emt 00:00:13]} 18. Nxe4 {[%clk
00:49:53]} {[%emt 00:03:50]} dxe4 {[%clk 00:59:33]} {[%emt 00:00:15]} 19. Bxe4
{[%clk 00:50:08]} {[%emt 00:00:13]} Bxe5 {[%clk 00:50:03]} {[%emt 00:10:02]} 20.
Qc1 {[%clk 00:45:24]} {[%emt 00:05:14]} Bh2+ {[%clk 00:44:55]} {[%emt
00:05:39]} 21. Kxh2 {[%clk 00:45:17]} {[%emt 00:00:35]} Rxe4 {[%clk 00:45:19]}
{[%emt 00:00:08]} 22. Bf4 {[%clk 00:40:27]} {[%emt 00:05:18]} Rde8 {[%clk
00:35:06]} {[%emt 00:10:44]} 23. Rxe4 {[%clk 00:36:30]} {[%emt 00:04:27]} Rxe4
{[%clk 00:35:27]} {[%emt 00:00:09]} 24. Qd2 {[%clk 00:36:44]} {[%emt 00:00:14]}
Bb5 {[%clk 00:33:06]} {[%emt 00:02:53]} 25. Bxh6 {[%clk 00:35:28]} {[%emt
00:01:45]} Qe7 {[%clk 00:30:26]} {[%emt 00:03:12]} 26. Be3 {[%clk 00:34:55]}
{[%emt 00:01:01]} Re6 {[%clk 00:27:15]} {[%emt 00:03:43]} 27. Kg1 {[%clk
00:25:28]} {[%emt 00:09:56]} Rd6 {[%clk 00:26:13]} {[%emt 00:01:34]} 28. Qc1
{[%clk 00:24:27]} {[%emt 00:01:29]} Rd3 {[%clk 00:19:31]} {[%emt 00:07:14]} 29.
Qe1 {[%clk 00:22:03]} {[%emt 00:02:51]} c5 {[%clk 00:18:35]} {[%emt 00:01:28]}
30. Bf4 {[%clk 00:18:03]} {[%emt 00:04:30]} Qxe1+ {[%clk 00:17:45]} {[%emt
00:01:21]} 31. Rxe1 {[%clk 00:18:28]} {[%emt 00:00:03]} f6 {[%clk 00:17:51]}
{[%emt 00:00:26]} 32. Be3 {[%clk 00:14:09]} {[%emt 00:04:48]} b6 {[%clk
00:14:11]} {[%emt 00:04:10]} 33. Bf4 {[%clk 00:13:30]} {[%emt 00:01:09]} Bd7
{[%clk 00:14:24]} {[%emt 00:00:17]} 34. Bc7 {[%clk 00:13:47]} {[%emt 00:00:13]}
b5 {[%clk 00:14:41]} {[%emt 00:00:13]} 35. Bb6 {[%clk 00:14:04]} {[%emt
00:00:12]} Rd5 {[%clk 00:14:02]} {[%emt 00:01:10]} 36. Re7 {[%clk 00:13:39]}
{[%emt 00:00:55]} c4 {[%clk 00:08:11]} {[%emt 00:06:21]} 37. Bd4 {[%clk
00:13:50]} {[%emt 00:00:19]} Kf8 {[%clk 00:08:11]} {[%emt 00:00:30]} 38. Bxf6
{[%clk 00:12:55]} {[%emt 00:01:23]} Bf5 {[%clk 00:06:13]} {[%emt 00:02:29]} 39.
Ra7 {[%clk 00:10:59]} {[%emt 00:02:27]} Rd1+ {[%clk 00:06:07]} {[%emt
00:00:36]} 40. Kh2 {[%clk 00:26:23]} {[%emt 00:00:05]} Rd2 {[%clk 00:21:29]}
{[%emt 00:00:10]} 41. Bd4 {[%clk 00:26:39]} {[%emt 00:00:13]} Rxb2 {[%clk
00:21:32]} {[%emt 00:00:28]} 42. Rxa6 {[%clk 00:27:04]} {[%emt 00:00:04]} Kf7
{[%clk 00:20:56]} {[%emt 00:01:06]} 43. a3 {[%clk 00:26:22]} {[%emt 00:01:12]}
Ra2 {[%clk 00:18:57]} {[%emt 00:02:29]} 44. Ra5 {[%clk 00:25:10]} {[%emt
00:01:43]} Bc2 {[%clk 00:18:20]} {[%emt 00:01:06]} 45. Rxb5 {[%clk 00:25:30]}
{[%emt 00:00:08]} Rxa3 {[%clk 00:18:45]} {[%emt 00:00:07]} 46. g4 {[%clk
00:25:46]} {[%emt 00:00:12]} Ra1 {[%clk 00:18:24]} {[%emt 00:00:52]} 47. f3
{[%clk 00:25:42]} {[%emt 00:00:34]} Rd1 {[%clk 00:18:29]} {[%emt 00:00:25]} 48.
Rb7+ {[%clk 00:25:14]} {[%emt 00:00:58]} Ke6 {[%clk 00:18:16]} {[%emt
00:00:43]} 49. Kg3 {[%clk 00:25:11]} {[%emt 00:00:33]} Rd3 {[%clk 00:18:34]}
{[%emt 00:00:12]} 50. Rg7 {[%clk 00:22:07]} {[%emt 00:03:35]} Bd1 {[%clk
00:17:02]} {[%emt 00:02:02]} 51. Rxg6+ {[%clk 00:22:30]} {[%emt 00:00:07]} Ke7
{[%clk 00:17:19]} {[%emt 00:00:13]} 52. h4 {[%clk 00:21:26]} {[%emt 00:01:33]}
Rxf3+ {[%clk 00:17:39]} {[%emt 00:00:10]} 53. Kg2 {[%clk 00:21:34]} {[%emt
00:00:22]} Rf4 {[%clk 00:17:45]} {[%emt 00:00:24]} 54. Kg3 {[%clk 00:18:14]}
{[%emt 00:03:51]} Rf3+ {[%clk 00:17:56]} {[%emt 00:00:18]} 55. Kh2 {[%clk
00:18:31]} {[%emt 00:00:10]} Rf4 {[%clk 00:17:57]} {[%emt 00:00:31]} 56. Rc6
{[%clk 00:16:15]} {[%emt 00:02:47]} Rxg4 {[%clk 00:16:59]} {[%emt 00:01:29]} 57.
Kh3 {[%clk 00:16:38]} {[%emt 00:00:07]} Be2 {[%clk 00:12:01]} {[%emt 00:05:27]}
58. Bc5+ {[%clk 00:17:02]} {[%emt 00:00:07]} Kf7 {[%clk 00:10:36]} {[%emt
00:01:55]} 59. Rc7+ {[%clk 00:17:14]} {[%emt 00:00:16]} Kg8 {[%clk 00:10:38]}
{[%emt 00:00:29]} 60. Re7 {[%clk 00:14:58]} {[%emt 00:02:48]} Bd1 {[%clk
00:10:31]} {[%emt 00:00:36]} 61. Re8+ {[%clk 00:11:09]} {[%emt 00:04:19]} Kh7
{[%clk 00:09:53]} {[%emt 00:01:07]} 62. Bd4 {[%clk 00:09:33]} {[%emt 00:02:07]}
Rf4 {[%clk 00:09:17]} {[%emt 00:01:05]} 63. Re1 {[%clk 00:09:40]} {[%emt
00:00:22]} Bh5 {[%clk 00:09:16]} {[%emt 00:00:32]} 64. Re7+ {[%clk 00:10:00]}
{[%emt 00:00:09]} Rf7 {[%clk 00:09:05]} {[%emt 00:00:42]} 65. Re5 {[%clk
00:10:26]} {[%emt 00:00:03]} Bd1 {[%clk 00:08:46]} {[%emt 00:00:50]} 66. h5
{[%clk 00:07:30]} {[%emt 00:03:27]} Rf3+ {[%clk 00:07:55]} {[%emt 00:01:21]} 67.
Kg2 {[%clk 00:07:58]} {[%emt 00:00:02]} Rf7 {[%clk 00:07:02]} {[%emt 00:01:22]}
68. Rc5 {[%clk 00:08:15]} {[%emt 00:00:13]} Bf3+ {[%clk 00:06:39]} {[%emt
00:00:54]} 69. Kg3 {[%clk 00:08:39]} {[%emt 00:00:06]} Kh6 {[%clk 00:05:02]}
{[%emt 00:02:06]} 70. Be3+ {[%clk 00:08:54]} {[%emt 00:00:16]} Kh7 {[%clk
00:05:22]} {[%emt 00:00:09]} 71. Kh4 {[%clk 00:09:12]} {[%emt 00:00:12]} Be2
{[%clk 00:05:19]} {[%emt 00:00:34]} 72. Bd4 {[%clk 00:02:53]} {[%emt 00:06:49]}
Rf4+ {[%clk 00:01:04]} {[%emt 00:04:45]} 73. Kg5 {[%clk 00:03:22]} {[%emt
00:00:01]} Rg4+ {[%clk 00:01:07]} {[%emt 00:00:27]} 74. Kf5 {[%clk 00:03:44]}
{[%emt 00:00:07]} Rg8 {[%clk 00:00:43]} {[%emt 00:00:54]} 75. Rc7+ {[%clk
00:04:07]} {[%emt 00:00:07]} Kh6 {[%clk 00:00:59]} {[%emt 00:00:13]} 76. Be3+
{[%clk 00:04:35]} {[%emt 00:00:02]} Kxh5 {[%clk 00:01:23]} {[%emt 00:00:07]} 77.
Rh7 {[%clk 00:05:02]} {[%emt 00:00:03]} 1-0

[Event "IV Elllobregat Open Chess Tmnt"]
[Site "Sant Boi de Llobregat, Spain"]
[Date "2023.11.30"]
[Round "1.37"]
[White "Sherman, Raem"]
[Black "Velten, Paul"]
[Result "0-1"]
[TimeControl "90min/40moves + 15min/end + 30sec from move 1"]
[WhiteFideId "2822288"]
[BlackFideId "681091"]
[WhiteElo "2278"]
[BlackElo "2489"]

1. e4 {[%clk 01:30:11]} {[%emt 00:00:48]} e6 {[%clk 01:29:55]} {[%emt
00:01:05]} 2. d4 {[%clk 01:30:00]} {[%emt 00:00:40]} d5 {[%clk 01:29:21]}
{[%emt 00:01:05]} 3. e5 {[%clk 01:29:38]} {[%emt 00:00:52]} Bd7 {[%clk
01:26:54]} {[%emt 00:02:56]} 4. Nf3 {[%clk 01:29:19]} {[%emt 00:00:49]} c5
{[%clk 01:25:30]} {[%emt 00:01:54]} 5. c3 {[%clk 01:29:43]} {[%emt 00:00:07]}
Nc6 {[%clk 01:24:34]} {[%emt 00:01:27]} 6. Be2 {[%clk 01:30:03]} {[%emt
00:00:09]} Nge7 {[%clk 01:21:51]} {[%emt 00:03:13]} 7. Na3 {[%clk 01:30:24]}
{[%emt 00:00:09]} cxd4 {[%clk 01:17:02]} {[%emt 00:05:18]} 8. cxd4 {[%clk
01:30:06]} {[%emt 00:00:49]} f6 {[%clk 01:16:22]} {[%emt 00:01:11]} 9. Nb5
{[%clk 01:30:14]} {[%emt 00:00:21]} Ng6 {[%clk 01:15:44]} {[%emt 00:01:07]} 10.
exf6 {[%clk 01:30:32]} {[%emt 00:00:12]} gxf6 {[%clk 01:15:38]} {[%emt
00:00:37]} 11. h4 {[%clk 01:26:13]} {[%emt 00:04:49]} a6 {[%clk 01:14:24]}
{[%emt 00:01:43]} 12. Nc3 {[%clk 01:21:16]} {[%emt 00:05:28]} Qc7 {[%clk
01:11:14]} {[%emt 00:03:40]} 13. h5 {[%clk 01:19:06]} {[%emt 00:02:40]} Nge7
{[%clk 01:08:25]} {[%emt 00:03:20]} 14. Kf1 {[%clk 01:12:32]} {[%emt 00:07:03]}
O-O-O {[%clk 01:02:47]} {[%emt 00:06:08]} 15. b4 {[%clk 01:00:15]} {[%emt
00:12:48]} Nxb4 {[%clk 00:53:22]} {[%emt 00:09:54]} 16. Bd2 {[%clk 00:53:26]}
{[%emt 00:07:18]} Nbc6 {[%clk 00:52:32]} {[%emt 00:01:21]} 17. Na4 {[%clk
00:51:04]} {[%emt 00:02:52]} Na5 {[%clk 00:51:42]} {[%emt 00:01:21]} 18. Rb1
{[%clk 00:44:58]} {[%emt 00:06:33]} Bxa4 {[%clk 00:46:50]} {[%emt 00:05:23]} 19.
Qxa4 {[%clk 00:44:43]} {[%emt 00:00:46]} Nec6 {[%clk 00:45:14]} {[%emt
00:02:06]} 20. Rc1 {[%clk 00:43:28]} {[%emt 00:01:44]} Nc4 {[%clk 00:45:16]}
{[%emt 00:00:29]} 21. Bxc4 {[%clk 00:43:25]} {[%emt 00:00:33]} dxc4 {[%clk
00:45:40]} {[%emt 00:00:07]} 22. Qxc4 {[%clk 00:43:13]} {[%emt 00:00:42]} Rd5
{[%clk 00:45:50]} {[%emt 00:00:20]} 23. Qe2 {[%clk 00:33:47]} {[%emt 00:09:54]}
Qd7 {[%clk 00:45:29]} {[%emt 00:00:52]} 24. Re1 {[%clk 00:28:41]} {[%emt
00:05:37]} e5 {[%clk 00:44:25]} {[%emt 00:01:34]} 25. dxe5 {[%clk 00:28:38]}
{[%emt 00:00:33]} fxe5 {[%clk 00:44:42]} {[%emt 00:00:12]} 26. Bc3 {[%clk
00:28:38]} {[%emt 00:00:30]} Bc5 {[%clk 00:44:42]} {[%emt 00:00:31]} 27. Rh4
{[%clk 00:26:51]} {[%emt 00:02:17]} Rf8 {[%clk 00:43:50]} {[%emt 00:01:23]} 28.
Qe4 {[%clk 00:24:08]} {[%emt 00:03:12]} Kb8 {[%clk 00:43:14]} {[%emt 00:01:07]}
29. Rg4 {[%clk 00:21:47]} {[%emt 00:02:49]} Rf7 {[%clk 00:40:12]} {[%emt
00:03:33]} 30. h6 {[%clk 00:20:45]} {[%emt 00:01:32]} Rd6 {[%clk 00:31:57]}
{[%emt 00:08:45]} 31. Bxe5 {[%clk 00:17:40]} {[%emt 00:03:34]} Nxe5 {[%clk
00:32:21]} {[%emt 00:00:07]} 32. Rg8+ {[%clk 00:17:43]} {[%emt 00:00:28]} Ka7
{[%clk 00:32:44]} {[%emt 00:00:06]} 33. Qxe5 {[%clk 00:17:58]} {[%emt
00:00:15]} Rf5 {[%clk 00:32:58]} {[%emt 00:00:15]} 34. Qh8 {[%clk 00:16:34]}
{[%emt 00:01:54]} Bb4 {[%clk 00:24:12]} {[%emt 00:09:17]} 35. Ra8+ {[%clk
00:11:23]} {[%emt 00:05:42]} Kb6 {[%clk 00:24:36]} {[%emt 00:00:05]} 36. Rae8
{[%clk 00:05:38]} {[%emt 00:06:15]} Rxf3 {[%clk 00:16:03]} {[%emt 00:09:04]} 37.
gxf3 {[%clk 00:04:30]} {[%emt 00:01:37]} Qb5+ {[%clk 00:16:14]} {[%emt
00:00:19]} 38. R1e2 {[%clk 00:03:09]} {[%emt 00:01:51]} Rd1+ {[%clk 00:16:31]}
{[%emt 00:00:13]} 39. Kg2 {[%clk 00:03:34]} {[%emt 00:00:05]} Qg5+ {[%clk
00:16:49]} {[%emt 00:00:12]} 40. Kh2 {[%clk 00:18:55]} {[%emt 00:00:08]} Qxh6+
{[%clk 00:31:31]} {[%emt 00:00:48]} 41. Kg2 {[%clk 00:19:19]} {[%emt 00:00:06]}
Qg5+ {[%clk 00:31:41]} {[%emt 00:00:20]} 42. Kh2 {[%clk 00:19:43]} {[%emt
00:00:07]} Bd6+ {[%clk 00:31:52]} {[%emt 00:00:19]} 43. R8e5 {[%clk 00:19:58]}
{[%emt 00:00:15]} Rd5 {[%clk 00:30:45]} {[%emt 00:01:37]} 0-1

[Event "IV Elllobregat Open Chess Tmnt"]
[Site "Sant Boi de Llobregat, Spain"]
[Date "2023.11.30"]
[Round "1.38"]
[White "Koellner, Ruben Gideon"]
[Black "Wahedi, Ahmad Siar"]
[Result "1-0"]
[TimeControl "90min/40moves + 15min/end + 30sec from move 1"]
[WhiteFideId "12993093"]
[BlackFideId "4651260"]
[WhiteElo "2488"]
[BlackElo "2275"]

1. d4 {[%clk 01:30:55]} {[%emt 00:00:04]} e6 {[%clk 01:29:02]} {[%emt
00:02:00]} 2. Bf4 {[%clk 01:31:08]} {[%emt 00:00:16]} c5 {[%clk 01:29:18]}
{[%emt 00:00:15]} 3. e3 {[%clk 01:31:25]} {[%emt 00:00:11]} Nc6 {[%clk
01:28:09]} {[%emt 00:01:40]} 4. c3 {[%clk 01:30:06]} {[%emt 00:01:49]} Qb6
{[%clk 01:23:57]} {[%emt 00:04:43]} 5. Qb3 {[%clk 01:29:18]} {[%emt 00:01:16]}
Qxb3 {[%clk 01:20:38]} {[%emt 00:03:50]} 6. axb3 {[%clk 01:29:41]} {[%emt
00:00:06]} cxd4 {[%clk 01:21:00]} {[%emt 00:00:09]} 7. exd4 {[%clk 01:30:00]}
{[%emt 00:00:10]} d6 {[%clk 01:20:41]} {[%emt 00:00:50]} 8. Nf3 {[%clk
01:28:38]} {[%emt 00:01:51]} f6 {[%clk 01:20:28]} {[%emt 00:00:45]} 9. d5
{[%clk 01:18:01]} {[%emt 00:11:07]} exd5 {[%clk 01:19:15]} {[%emt 00:01:43]} 10.
Na3 {[%clk 01:18:14]} {[%emt 00:00:16]} Be6 {[%clk 01:17:16]} {[%emt 00:02:29]}
11. Nb5 {[%clk 01:18:02]} {[%emt 00:00:42]} Kd7 {[%clk 01:17:02]} {[%emt
00:00:44]} 12. Nbd4 {[%clk 01:12:07]} {[%emt 00:06:24]} Bf7 {[%clk 01:13:33]}
{[%emt 00:04:00]} 13. b4 {[%clk 00:53:46]} {[%emt 00:18:50]} Nge7 {[%clk
01:11:12]} {[%emt 00:02:52]} 14. Be3 {[%clk 00:51:44]} {[%emt 00:02:31]} Ne5
{[%clk 01:05:55]} {[%emt 00:05:48]} 15. Be2 {[%clk 00:51:47]} {[%emt 00:00:27]}
Nc4 {[%clk 01:05:27]} {[%emt 00:00:58]} 16. Bc1 {[%clk 00:52:07]} {[%emt
00:00:09]} g6 {[%clk 01:01:15]} {[%emt 00:04:44]} 17. O-O {[%clk 00:50:40]}
{[%emt 00:01:56]} Bg7 {[%clk 01:01:05]} {[%emt 00:00:41]} 18. b5 {[%clk
00:47:27]} {[%emt 00:03:42]} Rhc8 {[%clk 00:57:39]} {[%emt 00:03:57]} 19. b3
{[%clk 00:46:04]} {[%emt 00:01:52]} Ne5 {[%clk 00:56:01]} {[%emt 00:02:08]} 20.
Bd2 {[%clk 00:45:49]} {[%emt 00:00:45]} Re8 {[%clk 00:47:44]} {[%emt 00:08:48]}
21. Ra2 {[%clk 00:44:55]} {[%emt 00:01:23]} Nc8 {[%clk 00:47:27]} {[%emt
00:00:47]} 22. Rfa1 {[%clk 00:44:49]} {[%emt 00:00:35]} Rb8 {[%clk 00:47:17]}
{[%emt 00:00:41]} 23. Ne1 {[%clk 00:42:42]} {[%emt 00:02:36]} Kd8 {[%clk
00:42:36]} {[%emt 00:05:12]} 24. Nec2 {[%clk 00:39:10]} {[%emt 00:04:02]} Nd7
{[%clk 00:41:46]} {[%emt 00:01:20]} 25. Be3 {[%clk 00:35:16]} {[%emt 00:04:23]}
Nc5 {[%clk 00:40:49]} {[%emt 00:01:28]} 26. Nb4 {[%clk 00:32:24]} {[%emt
00:03:21]} f5 {[%clk 00:35:39]} {[%emt 00:05:42]} 27. Bf1 {[%clk 00:22:14]}
{[%emt 00:10:40]} Kd7 {[%clk 00:31:03]} {[%emt 00:05:06]} 28. g3 {[%clk
00:20:56]} {[%emt 00:01:48]} h6 {[%clk 00:27:59]} {[%emt 00:03:34]} 29. Rc1
{[%clk 00:15:14]} {[%emt 00:06:10]} Re7 {[%clk 00:27:32]} {[%emt 00:00:59]} 30.
h4 {[%clk 00:15:01]} {[%emt 00:00:42]} Ne4 {[%clk 00:25:36]} {[%emt 00:02:27]}
31. Kh2 {[%clk 00:13:52]} {[%emt 00:01:38]} Nf6 {[%clk 00:24:20]} {[%emt
00:01:47]} 32. Kg1 {[%clk 00:13:20]} {[%emt 00:01:01]} Ne4 {[%clk 00:21:47]}
{[%emt 00:03:03]} 33. Kh2 {[%clk 00:13:10]} {[%emt 00:00:39]} Nf6 {[%clk
00:22:08]} {[%emt 00:00:10]} 34. Kg2 {[%clk 00:13:24]} {[%emt 00:00:15]} Ng4
{[%clk 00:21:52]} {[%emt 00:00:47]} 35. Bd2 {[%clk 00:13:37]} {[%emt 00:00:16]}
h5 {[%clk 00:20:06]} {[%emt 00:02:18]} 36. Nd3 {[%clk 00:11:03]} {[%emt
00:03:02]} Ke8 {[%clk 00:19:31]} {[%emt 00:01:06]} 37. f3 {[%clk 00:05:42]}
{[%emt 00:05:50]} Ne3+ {[%clk 00:18:10]} {[%emt 00:01:52]} 38. Kf2 {[%clk
00:05:50]} {[%emt 00:00:21]} Nxf1 {[%clk 00:17:58]} {[%emt 00:00:43]} 39. Rxf1
{[%clk 00:06:15]} {[%emt 00:00:05]} Kf8 {[%clk 00:14:30]} {[%emt 00:03:59]} 40.
Nf4 {[%clk 00:18:49]} {[%emt 00:02:55]} Re8 {[%clk 00:28:35]} {[%emt 00:01:26]}
41. Be3 {[%clk 00:18:11]} {[%emt 00:01:07]} b6 {[%clk 00:28:26]} {[%emt
00:00:40]} 42. Nc6 {[%clk 00:15:16]} {[%emt 00:03:24]} Rb7 {[%clk 00:26:19]}
{[%emt 00:02:38]} 43. Bd4 {[%clk 00:15:38]} {[%emt 00:00:07]} Rc7 {[%clk
00:26:33]} {[%emt 00:00:17]} 44. Rd1 {[%clk 00:09:04]} {[%emt 00:07:03]} Bxd4+
{[%clk 00:24:28]} {[%emt 00:02:35]} 45. Rxd4 {[%clk 00:09:27]} {[%emt
00:00:06]} Ne7 {[%clk 00:24:53]} {[%emt 00:00:06]} 46. Rxa7 {[%clk 00:07:15]}
{[%emt 00:02:42]} Rxa7 {[%clk 00:21:23]} {[%emt 00:04:00]} 47. Nxa7 {[%clk
00:07:40]} {[%emt 00:00:05]} Ra8 {[%clk 00:21:41]} {[%emt 00:00:12]} 48. Ra4
{[%clk 00:08:00]} {[%emt 00:00:09]} Ke8 {[%clk 00:22:00]} {[%emt 00:00:12]} 49.
Ne2 {[%clk 00:07:30]} {[%emt 00:01:00]} Kd7 {[%clk 00:19:13]} {[%emt 00:03:18]}
50. Nd4 {[%clk 00:07:51]} {[%emt 00:00:08]} Kc7 {[%clk 00:18:31]} {[%emt
00:01:13]} 51. Nac6 {[%clk 00:07:01]} {[%emt 00:01:19]} Rxa4 {[%clk 00:18:20]}
{[%emt 00:00:41]} 52. bxa4 {[%clk 00:07:26]} {[%emt 00:00:05]} Ng8 {[%clk
00:18:36]} {[%emt 00:00:14]} 53. Ke3 {[%clk 00:07:04]} {[%emt 00:00:51]} Nf6
{[%clk 00:16:53]} {[%emt 00:02:14]} 54. Kf4 {[%clk 00:06:24]} {[%emt 00:01:09]}
Nh7 {[%clk 00:17:12]} {[%emt 00:00:12]} 55. Nb4 {[%clk 00:04:03]} {[%emt
00:02:52]} Kd7 {[%clk 00:16:51]} {[%emt 00:00:51]} 56. Ne2 {[%clk 00:04:08]}
{[%emt 00:00:23]} Ke6 {[%clk 00:14:29]} {[%emt 00:02:53]} 57. Ke3 {[%clk
00:03:38]} {[%emt 00:01:00]} g5 {[%clk 00:12:16]} {[%emt 00:02:43]} 58. hxg5
{[%clk 00:03:39]} {[%emt 00:00:28]} Nxg5 {[%clk 00:12:42]} {[%emt 00:00:05]} 59.
Nf4+ {[%clk 00:04:04]} {[%emt 00:00:04]} Kd7 {[%clk 00:11:51]} {[%emt
00:01:22]} 60. Nbxd5 {[%clk 00:04:24]} {[%emt 00:00:10]} Kc8 {[%clk 00:12:00]}
{[%emt 00:00:22]} 61. Nxb6+ {[%clk 00:04:41]} {[%emt 00:00:12]} Kb7 {[%clk
00:12:23]} {[%emt 00:00:08]} 62. Nbd5 {[%clk 00:05:00]} {[%emt 00:00:10]} Be8
{[%clk 00:12:35]} {[%emt 00:00:19]} 63. c4 {[%clk 00:04:57]} {[%emt 00:00:32]}
Nf7 {[%clk 00:13:01]} {[%emt 00:00:04]} 64. Nf6 {[%clk 00:05:19]} {[%emt
00:00:08]} 1-0